Cogmind - Beta 13 @@@ ROGUE MODE // 2024.05.21 @ 03:03:31 Player: A Moose Result: Core destroyed Performance ------------- Evolutions (4) 2000 Regions Visited (13) 2600 Robots Destroyed (164) 820 Value Destroyed (7331) 7331 Prototype IDs (11) 220 Alien Tech Used (0) 0 Bonus (2941) 2941 TOTAL SCORE: 15912 Bonus ------- High Alert Combat Kills 1528 Follower Combat Kills 427 Entered Garrisons 400 Met Imprinter 300 Acquired ECA 300 Friendly Fire -14 Cogmind --------- Core Integrity 0/850 Matter 156/300 Energy 170/170 System Corruption 0% Temperature Critical (634) Movement Rolling (140) Ox4 Location -6/Zion Parts ------- > --- POWER (1) -------- Makeshift Power Source > --- PROPULSION (2) --- Makeshift Leg Wheel > --- UTILITY (8) ------ Advanced Terrain Scan Processor Hardened Heavy Armor Plating Makeshift Light Armor Plating Makeshift Kinetic Plating Long-range Tractor Beam > --- WEAPON (4) ------- Gauss Rifle Makeshift Shrapnel Gun Flak Cannon Improved Plasma Cutter > --- INVENTORY (5) ---- Light Deuterium Engine Encrypted Comm Array Hacking Drone Bay (1/1) Hypervelocity Coil Gun Hypervelocity Coil Gun Peak State ------------ > --- POWER ------------ Light Antimatter Reactor > --- PROPULSION ------- Wheel Compact Wheel > --- UTILITY ---------- Improved Heat Sink High-capacity Storage Unit Improved Signal Interpreter Encrypted Comm Array Core Analyzer Phase Shifter Improved Light Armor Plating Hardlight Generator > --- WEAPON ----------- Phase Gun Phase Gun Phase Cannon Heavy Plasma Cannon > --- INVENTORY -------- Light Ion Engine Light Deuterium Engine Hybrid Fission Core Light Treads Wheel High-capacity Matter Pod High-capacity Matter Pod High-capacity Matter Pod Transmission Jammer Active Sensor Spoofer Improved EM Pulse Cannon Improved EM Pulse Cannon Heavy Plasma Cannon [Rating: 63] Favorites ----------- Power Light Nuclear Core Engine Light Ion Engine Power Core Light Nuclear Core Reactor Light Antimatter Reactor Propulsion Light Treads Treads Light Treads Leg Makeshift Leg Wheel Wheel Utility High-capacity Storage Unit Device Advanced Heat Sink Storage High-capacity Storage Unit Processor Improved Signal Interpreter Protection Medium Reactive Plating Weapon Gauss Cannon Energy Gun Phase Gun Energy Cannon Plasma Cannon Ballistic Gun Light Assault Rifle Ballistic Cannon Gauss Cannon Special Weapon Improved Plasma Cutter Impact Weapon Makeshift Hammer Slashing Weapon Chainsword Build | -11 -10 -10 -10 -9 -8 -8 -8 -7 -7 -6 -6 -6 -6 ------- Run | Yrd Mat Min Exi Min Mat Gar Mat Fac Gar Fac Low Low Zio Slots Evolved 8 | . . . . . 4 . . 2 . 2 . . . Power . | . . . . . . . . . . . . . . Propulsion . | . . . . . . . . . . . . . . Utility 6 | . . . . . 3 . . 2 . 1 . . . Weapon 2 | . . . . . 1 . . . . 1 . . . Parts Attached 181 | 8 2 3 . . 13 14 13 37 19 19 15 21 17 Power 24 | 1 . 1 . . 2 4 . 5 3 1 2 4 1 Engine 11 | 1 . 1 . . 1 2 . 2 1 . 1 1 1 Core 12 | . . . . . 1 2 . 3 2 1 . 3 . Reactor 1 | . . . . . . . . . . . 1 . . Propulsion 36 | 4 . 1 . . 2 2 1 7 6 4 4 3 2 Treads 10 | 2 . . . . 1 1 . . 3 . 1 2 . Leg 3 | . . . . . . . . . 2 . . . 1 Wheel 23 | 2 . 1 . . 1 1 1 7 1 4 3 1 1 Hover . | . . . . . . . . . . . . . . Flight . | . . . . . . . . . . . . . . Utility 70 | 1 2 . . . 5 2 8 14 8 8 6 7 9 Device 32 | . 1 . . . 3 1 3 7 4 2 5 2 4 Storage 5 | 1 1 . . . . . . . . 1 . 2 . Processor 9 | . . . . . 1 . 2 1 1 . . 2 2 Hackware . | . . . . . . . . . . . . . . Protection 24 | . . . . . 1 1 3 6 3 5 1 1 3 Artifact . | . . . . . . . . . . . . . . Weapon 51 | 2 . 1 . . 4 6 4 11 2 6 3 7 5 Energy Gun 11 | 1 . . . . 1 . . 4 2 1 1 1 . Energy Cannon 14 | . . . . . . 3 2 3 . 1 2 3 . Ballistic Gun 11 | 1 . . . . . . 1 1 . 4 . 2 2 Ballistic Cannon 12 | . . 1 . . 3 3 1 3 . . . . 1 Launcher . | . . . . . . . . . . . . . . Special Weapon 1 | . . . . . . . . . . . . . 1 Impact Weapon 1 | . . . . . . . . . . . . . 1 Slashing Weapon 1 | . . . . . . . . . . . . 1 . Piercing Weapon . | . . . . . . . . . . . . . . Special Melee Weapon . | . . . . . . . . . . . . . . Unidentified Prototypes 7 | . . . . . . . . 2 1 . . . 4 Parts Lost 98 | . . 3 . . 6 8 5 23 10 7 17 19 . Power 17 | . . 1 . . 1 3 . 5 1 1 2 3 . Propulsion 23 | . . 1 . . 2 2 2 6 1 1 3 5 . Utility 32 | . . . . . 3 1 . 6 6 3 7 6 . Weapon 26 | . . 1 . . . 2 3 6 2 2 5 5 . Highest Loss Streak 14 | . . 3 . . 3 3 5 4 5 6 9 14 . To Critical Strikes 1 | . . . . . . . . . . . . 1 . Average Slot Usage (%) 88 | . 98 99 100 100 93 94 93 93 94 89 86 32 68 Engine 5 | . 14 13 14 14 6 3 . 3 2 3 1 1 3 Core 2 | . . . . . 2 4 9 3 4 2 . . . Treads 6 | . 28 23 14 14 6 1 . . 7 5 1 . . Wheel 8 | . . 4 14 14 10 16 13 11 2 4 10 4 5 Device 14 | . 12 14 14 14 22 18 12 19 13 13 20 6 11 Storage 7 | . 14 14 14 14 9 9 9 7 7 6 6 2 . Processor 9 | . . . . . . 9 15 19 15 13 13 7 6 Protection 7 | . . . . . 7 4 7 5 13 14 4 1 14 Energy Gun 4 | . 14 9 . . . . . 7 12 7 8 . . Energy Cannon 4 | . . . . . . 13 8 8 . . 12 4 . Ballistic Gun 5 | . 14 14 14 14 . . 4 3 1 10 . . 9 Ballistic Cannon 7 | . . 4 14 14 25 13 12 1 7 3 . . 5 Naked Turns 69 | . . . . . . . . . . . . 69 . Heaviest Build 112 | 13 49 50 48 48 78 74 78 78 112 101 95 79 80 Greatest Support 40 | 40 40 40 10 10 20 26 26 32 40 40 26 22 10 Greatest Overweight (x) 34 | . 1 4 4 4 7 6 4 21 34 6 6 6 7 Average Overweight (x) 2 | . . 2 4 4 5 2 2 2 3 3 3 . 3 Largest Inventory Capacity 20 | 8 20 20 20 20 20 20 20 20 20 20 20 20 5 Average Capacity 17 | 7 14 20 20 20 20 20 20 20 20 20 20 10 5 Most Carried 20 | 5 12 13 12 19 20 20 20 20 20 20 19 18 5 Average Carried 15 | 2 7 12 10 17 19 19 18 17 18 17 12 8 4 Final Capacity 20 | 8 20 20 20 20 20 20 20 20 20 20 20 5 5 Final Carried 20 | 4 12 10 12 19 20 17 19 19 20 19 14 5 5 Class Distribution -------------------- 27% | Mutant 26% | Scavenger-Tank 11% | Scavenger-Gunner 10% | Scavenger-Skirmisher 6% | Scavenger-Mutant 6% | Derelict-Tank 4% | Tank Dominant Class ---------------- Mutant | -10/Materials Mutant | -10/Mines Mutant | -10/Exiles Mutant | -9/Mines Tank | -8/Materials Scavenger-Gunner | -8/Garrison Scavenger-Skirmisher | -8/Materials Scavenger-Skirmisher | -7/Factory Scavenger-Tank | -7/Garrison Scavenger-Tank | -6/Factory Scavenger-Tank | -6/Lower Caves Mutant | -6/Lower Caves Derelict-Tank | -6/Zion Resources | -11 -10 -10 -10 -9 -8 -8 -8 -7 -7 -6 -6 -6 -6 ----------- Run | Yrd Mat Min Exi Min Mat Gar Mat Fac Gar Fac Low Low Zio Matter Collected 4410 | 187 105 132 268 25 553 743 259 708 571 446 214 109 90 Remotely 50 | . . . . . . . . . . . . . 50 Salvage Created 5868 | . 148 112 . 71 491 930 441 1262 986 869 414 144 . Parts 277 | . 14 5 . 4 32 45 22 59 44 29 14 9 . Haulers Intercepted 5 | . . . . . 2 . . 3 . . . . . Recyclers Shooed 8 | . . . . . . . 1 2 . 5 . . . Parts Field Recycled . | . . . . . . . . . . . . . . Retrieved Matter . | . . . . . . . . . . . . . . Parts Self-Destructed 29 | . . . . . . . . . . . 15 11 3 Prevented 2 | . . . . . . . . . . . . 2 . Kills | -11 -10 -10 -10 -9 -8 -8 -8 -7 -7 -6 -6 -6 -6 ------- Run | Yrd Mat Min Exi Min Mat Gar Mat Fac Gar Fac Low Low Zio Combat Hostiles Destroyed 139 | . 5 5 . 2 12 34 11 22 25 9 11 3 . Guns 49 | . 5 3 . . . . 1 16 12 7 3 2 . Cannons 87 | . . 2 . 2 12 33 10 6 13 2 6 1 . Classes Destroyed 14 | . 2 . . . 6 1 1 1 2 1 . . . Worker 3 | . . . . . . . . . . 3 . . . Builder 2 | . . . . . 2 . . . . . . . . Tunneler 2 | . . . . . . . 1 1 . . . . . Hauler 5 | . . . . . 2 . . 3 . . . . . Recycler 8 | . . . . . 1 . 1 3 . 3 . . . Watcher 5 | . . . . . 1 . 2 2 . . . . . Swarmer 46 | . 3 3 . . 3 11 5 9 4 . 7 1 . Grunt 62 | . 2 2 . 2 6 19 3 5 13 7 3 . . Brawler 2 | . . . . . . . . . 2 . . . . Duelist 7 | . . . . . 1 2 . 2 1 . . 1 . Sentry 15 | . . . . . 2 . 2 4 4 1 1 1 . Demolisher 1 | . . . . . . . . . 1 . . . . Hunter 5 | . . . . . . 2 1 1 . 1 . . . Programmer 1 | . . . . . . . . 1 . . . . . Best Kill Streak 10 | . 3 3 . 2 6 5 5 10 5 5 5 1 . Combat Bots Only 5 | . 3 3 . 2 5 5 3 4 5 4 5 1 . Max Kills in Single Turn 2 | . 1 2 . 1 1 2 1 1 2 2 1 1 . Gunslinging 1 | . . 1 . . . . . . . 1 . . . Exploded . | . . . . . . . . . . . . . . Melee . | . . . . . . . . . . . . . . Uniques/NPCs Destroyed . | . . . . . . . . . . . . . . Combat | -11 -10 -10 -10 -9 -8 -8 -8 -7 -7 -6 -6 -6 -6 -------- Run | Yrd Mat Min Exi Min Mat Gar Mat Fac Gar Fac Low Low Zio Hostile Shots Fired 1289 | . 12 52 . 22 84 144 55 400 152 97 131 140 . Missed 399 | . 3 16 . 5 26 38 17 141 44 34 33 42 . Damage Taken 11662 | . 85 349 . 175 720 1393 499 2954 1348 875 1416 1712 136 Core 1945 | . 11 23 . 41 20 288 87 461 69 41 130 638 136 Absorbed by Shields 590 | . . . . . 100 34 20 107 106 167 56 . . Redirected to Shielding 58 | . . . . . . 12 8 . . . . 38 . Ignored by Resistances 192 | . . . . . . . . . 152 40 . . . Core Remaining (%) 55 | 100 . . . 70 . . 28 . 24 . . . . Volleys Fired 421 | . 8 28 . 8 25 80 35 87 70 34 35 11 . Largest 4 | . 2 2 . 2 3 3 3 3 3 4 4 3 . Hottest 351 | . 60 60 . 55 144 240 188 188 211 252 351 265 . Shots Fired 927 | . 16 55 . 16 73 196 84 172 143 96 59 17 . Gun 397 | . 16 45 . 8 . . 23 100 91 79 29 6 . Cannon 530 | . . 10 . 8 73 196 61 72 52 17 30 11 . Launcher . | . . . . . . . . . . . . . . Special . | . . . . . . . . . . . . . . Kinetic 516 | . 8 38 . 16 73 115 50 64 71 60 19 2 . Thermal 368 | . . . . . . 81 34 93 71 36 40 13 . Explosive . | . . . . . . . . . . . . . . Electromagnetic 43 | . 8 17 . . . . . 15 1 . . 2 . Robot Hit Streak 32 | . 8 10 . 15 12 10 13 32 17 10 6 6 . Robot Miss Streak 8 | . 1 2 . 2 4 3 3 6 7 8 4 2 . Penetration Max 1 | . . . . . . 1 1 1 . . . . . Secondary Targets 5 | . 2 2 . . . . . . . 1 . . . Max Gunslinging Chain 1 | . 1 1 . . . . . . . 1 . . . Shots Hit Robots 572 | . 11 40 . 11 38 96 50 134 76 68 36 12 . Core Hits 310 | . 7 10 . 4 21 44 16 69 53 58 22 6 . Critical Kills 3 | . . . . . . 1 . . . . 2 . . Critical Parts Destroyed . | . . . . . . . . . . . . . . Critical Strikes 30 | . . 1 . . 3 10 4 4 3 3 2 . . Burn 3 | . . . . . . . . 2 1 . . . . Meltdown 3 | . . . . . . 1 . . . . 2 . . Blast 23 | . . 1 . . 3 9 4 1 2 3 . . . Corrupt 1 | . . . . . . . . 1 . . . . . Melee Attacks . | . . . . . . . . . . . . . . Impact . | . . . . . . . . . . . . . . Slashing . | . . . . . . . . . . . . . . Piercing . | . . . . . . . . . . . . . . Sneak Attacks . | . . . . . . . . . . . . . . Combat Hostiles . | . . . . . . . . . . . . . . Follow-up Attacks . | . . . . . . . . . . . . . . Damage Inflicted 13935 | . 138 442 . 154 1312 2906 1154 3037 1963 1610 912 307 . Guns 5088 | . 138 309 . 34 . . 254 1660 1025 1269 273 126 . Cannons 8615 | . . 133 . 120 1108 2906 883 1366 938 341 639 181 . Explosions 221 | . . . . . 204 . 17 . . . . . . Melee . | . . . . . . . . . . . . . . Ramming 11 | . . . . . . . . 11 . . . . . Kinetic 7839 | . 27 293 . 154 1108 1838 610 1335 1224 1016 219 15 . Thermal 5372 | . . . . . . 1068 527 1509 717 594 693 264 . Explosive 221 | . . . . . 204 . 17 . . . . . . Electromagnetic 492 | . 111 149 . . . . . 182 22 . . 28 . Impact . | . . . . . . . . . . . . . . Slashing . | . . . . . . . . . . . . . . Piercing . | . . . . . . . . . . . . . . Highest Corruption 9 | . . . . . . . . 3 . . . 9 9 Average Corruption 7 | . . . . . . . . 2 . . . 9 9 Corruption Purged 3 | . . . . . . . . 3 . . . . . Corruption Blocked . | . . . . . . . . . . . . . . Effects 16 | . . . . . . . . 2 . . . 12 2 Message Errors 3 | . . . . . . . . . . . . 3 . Matter Fused 6 | . . . . . . . . . . . . 5 1 Heat Flow Errors 2 | . . . . . . . . . . . . 1 1 Energy Discharges 1 | . . . . . . . . . . . . 1 . Parts Rejected 1 | . . . . . . . . . . . . 1 . Misfires 1 | . . . . . . . . 1 . . . . . Alerts 2 | . . . . . . . . 1 . . . 1 . Overload Shots . | . . . . . . . . . . . . . . Overflow Damage 156 | . . . . . 23 97 24 . 5 . 7 . . Projectiles 138 | . . . . . 5 97 24 . 5 . 7 . . Explosions 18 | . . . . . 18 . . . . . . . . Melee . | . . . . . . . . . . . . . . Knockbacks 35 | . . . . 3 5 17 . 2 3 5 . . . Impact . | . . . . . . . . . . . . . . Kinetic 32 | . . . . 3 4 16 . 2 3 4 . . . Secondary 3 | . . . . . 1 1 . . . 1 . . . Self-Inflicted Damage 84 | . . . . . 79 . . 5 . . . . . Shots 1 | . . . . . 1 . . . . . . . . Rammed 1 | . . . . . . . . 1 . . . . . Targets Rammed 1 | . . . . . . . . 1 . . . . . Kicked . | . . . . . . . . . . . . . . Crushed . | . . . . . . . . . . . . . . Highest Temperature 670 | . 58 110 . 32 326 94 268 180 472 260 272 162 670 Average Temperature 84 | . 26 40 . 15 104 32 86 39 111 74 129 77 416 Received Heat Transfer 2883 | . 24 120 . 45 316 370 88 529 504 458 288 141 . Effects 13 | . . . . . 2 . . . 7 . . . 4 Shutdowns 1 | . . . . . . . . . 1 . . . . Energy Bleed 2 | . . . . . 1 . . . 1 . . . . Interference 3 | . . . . . . . . . 2 . . . 1 Matter Decay 1 | . . . . . . . . . . . . . 1 Short Circuit 3 | . . . . . 1 . . . 2 . . . . Damage (minor) 2 | . . . . . . . . . 1 . . . 1 Damage (core) 1 | . . . . . . . . . . . . . 1 Siege Activations . | . . . . . . . . . . . . . . Robots Corrupted . | . . . . . . . . . . . . . . Combat Hostiles . | . . . . . . . . . . . . . . Parts Fried . | . . . . . . . . . . . . . . Impact Corruptions . | . . . . . . . . . . . . . . Robots Melted 3 | . . . . . . 1 . . . . 2 . . Combat Hostiles 3 | . . . . . . 1 . . . . 2 . . Parts Melted 11 | . . . . . . 5 1 2 1 1 . 1 . Heat Transferred 9446 | . . . . . . 1924 1000 3052 1110 851 1035 474 . Parts Sabotaged 4 | . . . . . . . . . . 4 . . . Parts Stolen . | . . . . . . . . . . . . . . Parts Stripped . | . . . . . . . . . . . . . . Power Chain Reactions . | . . . . . . . . . . . . . . Alert | -11 -10 -10 -10 -9 -8 -8 -8 -7 -7 -6 -6 -6 -6 ------- Run | Yrd Mat Min Exi Min Mat Gar Mat Fac Gar Fac Low Low Zio Peak Influence 1425 | . 110 112 . 65 563 1341 906 593 1425 808 . . . Initial 737 | . . 42 . . . 256 653 350 410 737 . . . Average 560 | . 48 53 . 33 280 890 777 444 894 737 . . . Maximum Alert Level 4 | . . . . . 2 4 3 2 4 3 . . . Low Security (%) 25 | 100 100 100 . 100 29 . . . . . . . . Level 1 7 | . . . . . 33 6 . 29 . . . . . Level 2 22 | . . . . . 37 21 15 70 24 10 . . . Level 3 34 | . . . . . . 42 84 . 49 89 . . . Level 4 9 | . . . . . . 30 . . 26 . . . . Level 5 . | . . . . . . . . . . . . . . High Security . | . . . . . . . . . . . . . . Max Security . | . . . . . . . . . . . . . . Squads Dispatched 18 | . . . . . 3 . 4 5 . 5 . 1 . Investigation 2 | . . . . . . . 1 . . 1 . . . Extermination 2 | . . . . . . . . 1 . 1 . . . Reinforcement 7 | . . . . . 2 . 2 2 . 1 . . . Assault 4 | . . . . . . . 1 . . 2 . 1 . Garrison 3 | . . . . . 1 . . 2 . . . . . Intercept . | . . . . . . . . . . . . . . Searches Triggered . | . . . . . . . . . . . . . . Construction Impeded 2 | . . . . . 1 . 1 . . . . . . Haulers Reinforced 1 | . . . . . . . . 1 . . . . . Active Scanning Responses . | . . . . . . . . . . . . . . Cargo Convoy Interrupts . | . . . . . . . . . . . . . . Stealth | -11 -10 -10 -10 -9 -8 -8 -8 -7 -7 -6 -6 -6 -6 --------- Run | Yrd Mat Min Exi Min Mat Gar Mat Fac Gar Fac Low Low Zio Distress Signals 3 | . . . . . 2 . . 1 . . . . . Communications Jammed . | . . . . . . . . . . . . . . Distress Signals . | . . . . . . . . . . . . . . Times Spotted 223 | . 6 6 . 4 24 35 26 30 37 11 11 33 . Peak Tracking Total 9 | . 3 3 . 3 6 4 7 5 6 5 5 9 . Tactical Retreats 13 | . . 1 . . . . 2 2 . . . 8 . Traps | -11 -10 -10 -10 -9 -8 -8 -8 -7 -7 -6 -6 -6 -6 ------- Run | Yrd Mat Min Exi Min Mat Gar Mat Fac Gar Fac Low Low Zio Traps Triggered 15 | . . . . . . 9 . 2 3 1 . . . Indirectly . | . . . . . . . . . . . . . . Trap Hack Attempts . | . . . . . . . . . . . . . . Triggered . | . . . . . . . . . . . . . . Disarmed . | . . . . . . . . . . . . . . Reprogrammed . | . . . . . . . . . . . . . . Reused . | . . . . . . . . . . . . . . Traps Extracted . | . . . . . . . . . . . . . . Installed . | . . . . . . . . . . . . . . Triggered . | . . . . . . . . . . . . . . Machines | -11 -10 -10 -10 -9 -8 -8 -8 -7 -7 -6 -6 -6 -6 ---------- Run | Yrd Mat Min Exi Min Mat Gar Mat Fac Gar Fac Low Low Zio Machines Disabled 23 | . . 1 . 1 4 6 1 7 3 . . . . Max in Single Turn 2 | . . 1 . 1 1 1 1 2 1 . . . . Garrison Relay 8 | . . . . . . 5 . . 3 . . . . Machines Repaired . | . . . . . . . . . . . . . . Machines Dismantled . | . . . . . . . . . . . . . . Machines Sabotaged . | . . . . . . . . . . . . . . Overloaded Fab Kills . | . . . . . . . . . . . . . . Hacking | -11 -10 -10 -10 -9 -8 -8 -8 -7 -7 -6 -6 -6 -6 --------- Run | Yrd Mat Min Exi Min Mat Gar Mat Fac Gar Fac Low Low Zio Machines Accessed 20 | . . . 1 . 2 2 5 4 3 2 . 1 . Terminals 13 | . . . . . 1 2 4 2 3 1 . . . Fabricators 1 | . . . . . . . . 1 . . . . . Repair Stations . | . . . . . . . . . . . . . . Recycling Units . | . . . . . . . . . . . . . . Scanalyzers 2 | . . . . . . . 1 . . 1 . . . Garrison Access 2 | . . . . . 1 . . 1 . . . . . Total Hacks 48 | . . . 6 . 6 4 15 8 4 4 . 1 . Successful 29 | . . . 6 . 3 . 7 6 3 3 . 1 . Failed 19 | . . . . . 3 4 8 2 1 1 . . . Catastrophic 1 | . . . . . . . . 1 . . . . . Database Lockouts . | . . . . . . . . . . . . . . Manual 9 | . . . . . 4 . 2 . . 3 . . . Terminals 32 | . . . . . 4 4 13 5 4 2 . . . Fabricators 1 | . . . . . . . . 1 . . . . . Repair Stations . | . . . . . . . . . . . . . . Recycling Units . | . . . . . . . . . . . . . . Scanalyzers 4 | . . . . . . . 2 . . 2 . . . Garrison Access 4 | . . . . . 2 . . 2 . . . . . Terminal Hacks 22 | . . . 6 . 2 . 5 4 3 1 . 1 . Record 6 | . . . 6 . . . . . . . . . . Robot Schematic 1 | . . . . . . . . 1 . . . . . Robot Analysis 3 | . . . . . 2 . 1 . . . . . . Prototype ID Bank 2 | . . . . . . . 1 1 . . . . . Open Door 2 | . . . . . . . . . 1 . . 1 . Open DSF 1 | . . . . . . . . 1 . . . . . Branch Access Points 2 | . . . . . . . 1 . . 1 . . . Emergency Access Points 2 | . . . . . . . . 1 1 . . . . Alert Level 1 | . . . . . . . 1 . . . . . . Zone Layout 1 | . . . . . . . 1 . . . . . . Garrison Registry 1 | . . . . . . . . . 1 . . . . Fabricator Hacks 1 | . . . . . . . . 1 . . . . . Build 1 | . . . . . . . . 1 . . . . . Repair Station Hacks . | . . . . . . . . . . . . . . Recycling Unit Hacks . | . . . . . . . . . . . . . . Scanalyzer 2 | . . . . . . . 2 . . . . . . Insert Component 1 | . . . . . . . 1 . . . . . . Analyze 1 | . . . . . . . 1 . . . . . . Garrison Access Hacks 2 | . . . . . 1 . . 1 . . . . . Unlock Access 2 | . . . . . 1 . . 1 . . . . . Unauthorized Hacks 2 | . . . . . . . . . . 2 . . . Terminals 1 | . . . . . . . . . . 1 . . . Assimilate 1 | . . . . . . . . . . 1 . . . Fabricators . | . . . . . . . . . . . . . . Repair Stations . | . . . . . . . . . . . . . . Recycling Units . | . . . . . . . . . . . . . . Scanalyzers 1 | . . . . . . . . . . 1 . . . Extract 1 | . . . . . . . . . . 1 . . . Garrison Access . | . . . . . . . . . . . . . . Data Cores Recovered . | . . . . . . . . . . . . . . Used . | . . . . . . . . . . . . . . Hacking Detections 12 | . . . . . 2 2 3 3 1 1 . . . Full Trace Events 4 | . . . . . . 2 2 . . . . . . Feedback Events . | . . . . . . . . . . . . . . Feedback Blocked . | . . . . . . . . . . . . . . Robot Schematics Acquired 4 | . . . . . . . . 1 . . . . 3 Robots Built . | . . . . . . . . . . . . . . Authchips . | . . . . . . . . . . . . . . Time . | . . . . . . . . . . . . . . Total Robot Build Rating . | . . . . . . . . . . . . . . Part Schematics Acquired 26 | . . . . . . . 1 . . 12 . . 13 Parts Built 2 | . . . . . . . . 2 . . . . . Authchips . | . . . . . . . . . . . . . . Time 58 | . . . . . . . . 58 . . . . . Total Part Build Rating 14 | . . . . . . . . 14 . . . . . Parts Repaired . | . . . . . . . . . . . . . . Time . | . . . . . . . . . . . . . . Parts Recycled . | . . . . . . . . . . . . . . Recycled Matter . | . . . . . . . . . . . . . . Retrieved Matter . | . . . . . . . . . . . . . . Retrieved Components . | . . . . . . . . . . . . . . Parts Scanalyzed 1 | . . . . . . . 1 . . . . . . Part Schematics Acquired 1 | . . . . . . . 1 . . . . . . Parts Damaged . | . . . . . . . . . . . . . . Bothacking | -11 -10 -10 -10 -9 -8 -8 -8 -7 -7 -6 -6 -6 -6 ------------ Run | Yrd Mat Min Exi Min Mat Gar Mat Fac Gar Fac Low Low Zio Used RIF Installer . | . . . . . . . . . . . . . . Robots Hacked . | . . . . . . . . . . . . . . Non-combat . | . . . . . . . . . . . . . . Combat . | . . . . . . . . . . . . . . Robot Hacks Applied . | . . . . . . . . . . . . . . Relay Couplers Released 31 | . . . . . . 19 . . 12 . . . . Machine Destruction 31 | . . . . . . 19 . . 12 . . . . Fabnet Peak Effective % . | . . . . . . . . . . . . . . Robots Rewired 2 | . . . . . . . . . 2 . . . . Allies Hacked . | . . . . . . . . . . . . . . Hacks Repelled . | . . . . . . . . . . . . . . Allies | -11 -10 -10 -10 -9 -8 -8 -8 -7 -7 -6 -6 -6 -6 -------- Run | Yrd Mat Min Exi Min Mat Gar Mat Fac Gar Fac Low Low Zio Total Allies 9 | . . . . 5 . . . . 4 . . . . Largest Group 5 | . . . . 5 5 . . . 2 . . . . Highest-Rated Group 175 | . . . . 81 81 . . . 175 . . . . Highest-Rated Ally 95 | . . . . 31 31 . . . 95 . . . . Total Orders . | . . . . . . . . . . . . . . Ally Attacks 91 | . . . . 4 48 . . . 39 . . . . Total Damage 1980 | . . . . 44 612 . . . 1324 . . . . Kills 20 | . . . . . 10 . . . 10 . . . . Allies Corrupted . | . . . . . . . . . . . . . . Allies Melted . | . . . . . . . . . . . . . . Intel | -11 -10 -10 -10 -9 -8 -8 -8 -7 -7 -6 -6 -6 -6 ------- Run | Yrd Mat Min Exi Min Mat Gar Mat Fac Gar Fac Low Low Zio Robot Analysis Total 3 | . . . . . 2 . 1 . . . . . . Derelict Logs Recovered 7 | . . 2 . 1 . . . . . . 1 2 1 Drone Launches . | . . . . . . . . . . . . . . Drone Recoveries . | . . . . . . . . . . . . . . Exploration | -11 -10 -10 -10 -9 -8 -8 -8 -7 -7 -6 -6 -6 -6 ------------- Run | Yrd Mat Min Exi Min Mat Gar Mat Fac Gar Fac Low Low Zio Turns Passed 9919 | 59 239 781 253 765 435 1087 876 1091 1537 777 538 527 954 Spaces Moved 5442 | 48 100 350 179 522 186 594 501 562 424 249 295 668 764 Core 792 | 6 . . . . . . . 1 1 . . 555 229 Treads 562 | 1 100 196 . . . . . . 204 59 . 2 . Legs 61 | . . . . . . . . . 61 . . . . Wheels 4027 | 41 . 154 179 522 186 594 501 561 158 190 295 111 535 Hover . | . . . . . . . . . . . . . . Flight . | . . . . . . . . . . . . . . Fastest Speed 50 | 50 160 140 140 140 125 120 120 115 130 120 125 50 50 Average Speed 144 | 86 199 196 140 140 167 126 136 129 291 196 143 63 120 Slowest Speed 1750 | 160 240 240 140 140 185 170 160 1100 1750 320 170 320 185 Overloaded Moves . | . . . . . . . . . . . . . . Propulsion Burnouts . | . . . . . . . . . . . . . . Robots Hopped . | . . . . . . . . . . . . . . Cave-ins Triggered . | . . . . . . . . . . . . . . Exploration Rate (%) 49 | 3 22 81 51 91 27 59 49 20 62 7 57 79 81 Regions Visited 13 Branch Regions 6 Pre-discovered Areas 3 | . . . 1 . . . . . . . 1 . 1 Known Exits Taken 4 | . . . . . 1 . . 1 . 1 1 . . Unknown Exits Taken 7 | 1 1 1 1 1 . . 1 . . . . 1 . Scrap Searched 15 | . . 1 . 2 . . . . . . 2 8 2 Spaces Dug 5 | . . . . . . . 4 . . 1 . . . Terrain Destroyed 128 | . . . . . 50 4 56 . 1 2 11 4 . Melee . | . . . . . . . . . . . . . . Projectile 84 | . . . . . 31 4 31 . 1 2 11 4 . AOE 44 | . . . . . 19 . 25 . . . . . . Terrain Rammed . | . . . . . . . . . . . . . . Walls Destroyed . | . . . . . . . . . . . . . . Machines Disabled . | . . . . . . . . . . . . . . Actions | -11 -10 -10 -10 -9 -8 -8 -8 -7 -7 -6 -6 -6 -6 --------- Run | Yrd Mat Min Exi Min Mat Gar Mat Fac Gar Fac Low Low Zio Total 6711 | 65 126 396 182 542 259 769 622 772 609 462 360 756 791 Wait 367 | . 8 15 . 6 5 5 55 52 27 141 9 41 3 Move 5429 | 47 99 349 178 521 185 593 500 561 423 248 294 667 764 Hop . | . . . . . . . . . . . . . . Pick Up 147 | 10 9 1 3 7 19 4 13 29 18 16 7 10 1 Fast Attach 25 | . . . . . 2 2 . 4 1 1 . 1 14 Attach 118 | 6 1 3 . . 7 6 8 29 11 14 12 19 2 Detach 7 | . . . . . . . 2 . . . . 3 2 Swap 38 | 2 1 . . . 4 6 5 4 7 4 3 1 1 Drop 45 | . . . 1 . 12 3 4 5 9 4 . 3 4 Fire 421 | . 8 28 . 8 25 80 35 87 70 34 35 11 . Melee . | . . . . . . . . . . . . . . Ram 1 | . . . . . . . . 1 . . . . . Kick . | . . . . . . . . . . . . . . Crush . | . . . . . . . . . . . . . . Escape Stasis 79 | . . . . . . 69 . . 10 . . . . Rewire 34 | . . . . . . 1 . . 33 . . . . Trap . | . . . . . . . . . . . . . . Miscellaneous . | . . . . . . . . . . . . . . Route ------- -11/Scrapyard -10/Materials -10/Mines (discovered 3 exits: [*Mat x2] / *Exi) -10/Exiles -9/Mines -8/Materials (discovered 2 exits: Sto / Gar) -8/Garrison (discovered 3 exits: *Mat x3) -8/Materials (discovered 3 exits: *Fac x2 / Sto) -7/Factory (discovered 2 exits: *Fac / Gar) -7/Garrison (discovered 3 exits: *Fac x3) -6/Factory (discovered 2 exits: *Low x2) -6/Lower Caves -6/Lower Caves (discovered 2 exits: [*Fac] / [*Zio]) -6/Zion History --------- Turn | Location | Event 18 | -11/Scrapyard | Discovered new exit (range 16) 60 | -11/Scrapyard | Entered Materials 268 | -10/Materials | Discovered new exit (range 7) 299 | -10/Materials | Entered Mines 302 | -10/Mines | Build established: Mutant 380 | -10/Mines | Discovered new exit (range 3) 586 | -10/Mines | Learned Materials garrison access intel 740 | -10/Mines | Learned Materials machine intel 898 | -10/Mines | Lost 3 parts (1p1n1w) 1020 | -10/Mines | Discovered new exit (range 3) 1075 | -10/Mines | Deemed a non-threat by the Exiles lab entrance 1075 | -10/Mines | Discovered new exit (range 5) 1080 | -10/Mines | Entered Exiles 1120 | -10/Exiles | Met 8R-AWN 1141 | -10/Exiles | Met EX-HEX 1180 | -10/Exiles | Met EX-BIN 1206 | -10/Exiles | Met EX-DEC 1218 | -10/Exiles | Learned location of Zion (-6) 1316 | -10/Exiles | Discovered new exit (range 12) 1333 | -10/Exiles | Entered Mines 1748 | -9/Mines | Assisted by bots powering up and referring to "LRC-V3" 1758 | -9/Mines | Learned 2 Materials zone layouts 2086 | -9/Mines | Discovered new exit (range 5) 2098 | -9/Mines | Entered Materials 2098 | -8/Materials | Accompanied by 5 allies 2098 | -8/Materials | Evolved 4 slots: Utility x3, Weapon x1 2099 | -8/Materials | Identified exit to Storage 2100 | -8/Materials | Loaded intel: 53 machine locations 2101 | -8/Materials | Loaded intel: 1 garrison access location 2103 | -8/Materials | Led the pair of lost Derelicts to an unsafe place 2346 | -8/Materials | Lost 4 allies 2396 | -8/Materials | Build established: Tank 2435 | -8/Materials | Garrison activated, responded to threat 2490 | -8/Materials | Identified exit to Garrison 2497 | -8/Materials | Lost 3 parts (1p2u) 2533 | -8/Materials | Entered Garrison 2553 | -8/Garrison | Triggered checkpoint 2573 | -8/Garrison | Garrison Relay disabled 2589 | -8/Garrison | Triggered checkpoint 2627 | -8/Garrison | Garrison Relay disabled 2829 | -8/Garrison | Triggered checkpoint 2893 | -8/Garrison | Triggered checkpoint 2907 | -8/Garrison | Garrison Relay disabled 2989 | -8/Garrison | Discovered new exit (range 9) 3073 | -8/Garrison | Triggered checkpoint 3073 | -8/Garrison | Build established: Scavenger-Gunner 3139 | -8/Garrison | Discovered new exit (range 12) 3216 | -8/Garrison | Garrison Relay disabled 3351 | -8/Garrison | Core integrity fell below 50% 3362 | -8/Garrison | Discovered new exit (range 10) 3393 | -8/Garrison | Triggered checkpoint 3417 | -8/Garrison | Garrison Relay disabled 3515 | -8/Garrison | Triggered checkpoint 3558 | -8/Garrison | Lost 3 parts (1p1u1w) 3620 | -8/Garrison | Entered Materials 4037 | -8/Materials | Discovered new exit (range 14) 4108 | -8/Materials | Lost 5 parts (2n3w) 4395 | -8/Materials | Discovered new exit (range 11) 4420 | -8/Materials | First assault squad dispatched 4496 | -8/Materials | Entered Factory 4496 | -7/Factory | Evolved 2 slots: Utility x2 4520 | -7/Factory | Identified exit to DSF 4667 | -7/Factory | Fabricated Phase Gun (x2) 4888 | -7/Factory | Lost 4 parts (1p1n2u) 5002 | -7/Factory | Discovered new exit (range 4) 5008 | -7/Factory | Identified exit to Factory 5102 | -7/Factory | Lost 4 parts (2n1u1w) 5162 | -7/Factory | Lost 4 parts (1p1n1u1w) 5393 | -7/Factory | Core integrity fell below 50% 5476 | -7/Factory | Garrison activated, responded to threat 5544 | -7/Factory | Lost 3 parts (1u2w) 5550 | -7/Factory | Identified exit to Garrison 5587 | -7/Factory | Entered Garrison 5704 | -7/Garrison | Lost 5 parts (1p3u1w) 5759 | -7/Garrison | Triggered checkpoint 5801 | -7/Garrison | Garrison Relay disabled 6085 | -7/Garrison | Triggered checkpoint 6285 | -7/Garrison | Build established: Scavenger-Tank 6295 | -7/Garrison | Discovered exit to Factory (range 7) 6365 | -7/Garrison | Triggered checkpoint 6437 | -7/Garrison | Garrison Relay disabled 6443 | -7/Garrison | Found embedded Infiltrators 6677 | -7/Garrison | Triggered checkpoint 6851 | -7/Garrison | Triggered checkpoint 6883 | -7/Garrison | Garrison Relay disabled 6915 | -7/Garrison | Discovered exit to Factory (range 40) 6915 | -7/Garrison | Discovered exit to Factory (range 32) 6915 | -7/Garrison | Discovered exit to Factory (range 57) 6993 | -7/Garrison | Triggered checkpoint 7124 | -7/Garrison | Entered Factory 7124 | -6/Factory | Evolved 2 slots: Utility x1, Weapon x1 7400 | -6/Factory | Identified exit to Lower Caves 7474 | -6/Factory | First assault squad dispatched 7668 | -6/Factory | Lost 6 parts (1p3u2w) 7901 | -6/Factory | Entered Lower Caves 7903 | -6/Lower Caves | Attracted the attention of an 0b10 checkpoint 7949 | -6/Lower Caves | Met a Warlord Commander 7950 | -6/Lower Caves | Learned location of Warlord (-5) 7951 | -6/Lower Caves | Warlord Commander delivered Encrypted Comm Array 7953 | -6/Lower Caves | Found Encrypted Comm Array 7970 | -6/Lower Caves | Lost 8 parts (1p1n4u2w) 8062 | -6/Lower Caves | Identified exit to Lower Caves 8320 | -6/Lower Caves | Lost 9 parts (1p2n3u3w) 8439 | -6/Lower Caves | Entered another Lower Caves area 8487 | -6/Lower Caves | Discovered new exit (range 14) 8501 | -6/Lower Caves | Attacked by a faux Warlord 8640 | -6/Lower Caves | Core integrity fell below 50% 8647 | -6/Lower Caves | Released all parts (5) 8677 | -6/Lower Caves | Lost 14 parts (2p4n3u5w) 8801 | -6/Lower Caves | Attracted the attention of an 0b10 outpost 8848 | -6/Lower Caves | Core integrity fell below 20% 8881 | -6/Lower Caves | Attracted the attention of an 0b10 checkpoint 8884 | -6/Lower Caves | Encountered a Warlord checkpoint 8904 | -6/Lower Caves | Build established: Mutant 8949 | -6/Lower Caves | Learned Factory terminal intel 8952 | -6/Lower Caves | Discovered new exit (range 15) 8963 | -6/Lower Caves | Learned location of 1 exit from Factory 8966 | -6/Lower Caves | Entered Zion 8968 | -6/Zion | Lost 3 allies 9011 | -6/Zion | System corruption cleaned by Quarantine Array 9070 | -6/Zion | Learned Factory emergency access door positions 9080 | -6/Zion | Learned Factory terminal intel 9097 | -6/Zion | Given the Hacking Drone Bay 9097 | -6/Zion | Found Prototype Device 9097 | -6/Zion | Identified Hacking Drone Bay 9145 | -6/Zion | Learned Factory garrison access intel 9582 | -6/Zion | Build established: Derelict-Tank 9609 | -6/Zion | Found Prototype Device 9609 | -6/Zion | Identified Bomb Factory No. 2 9913 | -6/Zion | Found Prototype Processor 9913 | -6/Zion | Identified Exp. Targeting Computer 9916 | -6/Zion | Found Prototype Processor 9916 | -6/Zion | Identified Exp. Terrain Scan Processor 9921 | -6/Zion | Core destroyed Last Messages --------------- 65-SK8(z): I'm pretty sure the Assembled are another MAIN.C experiment gone wrong. Very wrong. I7-PYH(z) examines a few pieces of the Twisted Machinery. Dropped Bomb Factory No. 2. Acquired Prototype Processor. Identified Exp. Targeting Computer. Faulty integration triggers heat surge (+417). Discarded Faulty Exp. Targeting Computer. Acquired Prototype Processor. Identified Exp. Terrain Scan Processor. Faulty integration triggers heat surge (+289). Discarded Faulty Exp. Terrain Scan Processor. Overheating: Matter decay (-46). Overheating: System interference. Imp. Plasma Cutter temporarily disabled. Overheating: Hrd. Heavy Armor Plating damaged (-175). Overheating: Core damaged (-136). Map ----- +----------------------------------------------------+ | "#"?"##"""" """"""" | | """"""""""" """" | | | | " " | | " "" "" | | "" ""#""" """"""" """# """"" "" | | """""""" """""""""""""" """""" "" | | " """""""""" """"#""""#"""" """"" "" | | """"######"""" "" ""######"##""" " """" " | | "#"##??????##"""" ""#?????#####"" " "" | | """##????????##""""????????????#"" | | ""##????????????#"?????????????##" " | | ""#????????????????????????????#"" """ """" | | "##"#?????????????????????????##"" """ """" | | """"##??????????????????????#"#""" """""?? | | ""##?????????????????????##""" """"""#??? | | " ""#?????????????????????#""" """""###??? | | " """#????????????????????##"" """"""""#### | | " ""#??????????????????????##"" """"" """"""" | | "#?????????????????????##""" """"" """" | | """#?????????????????????#"""" """"" "" | | """#"?????????????????????#"#"" """"" | | """#????????????????##??####"" """" | | """"#???????????????##!###" " """ | | """"##???????????????#!!!#"# "" | | """""#???????????????##!!@ "#""" " | | ""####???????????????#"c! #" """" """ " | | ""#?####?????????????#!!!"! # """" """""" | | "#### #?????????????##!!##" " """"" | | "#?#/ ##?????????????###?### ""# | | "###[ #???????????????????# """ "" | | ""##! !#?????????##????????# """" " | | ""## ##??###?##?#""#??????#" """""""" | | ""# #?###"##"###""##?????#"" """""""" | | ""# ###"""#"#""""""###???#### "" "" "" | | ""# #""""#"""" """"#####""""" """ """ | | """""" ""#"" """#"##""" "" """ """ | | """ """""" """#""" "" | | """"""" """" "" | | """ " | | """" "" | | """" "" | | " """ "" " | | " "" "" | | """ """"" """" | | """ """"""" """" """ "" " | | "" "" """""""" "#" """" """"" | | #"" """ """""""" """" """ """#"" | | "#"" """"" "" "" ""#" """ ""#""# | | #"""" """""" """ """"""""" """""" | +----------------------------------------------------+ Best States ------------- Heat Dissipation 91 Energy Generation 21 Energy Capacity 315 Matter Stores 300 Matter Capacity 300 Sight Range 16 Robot Scan Range 14 Terrain Scan Range 16 Terrain Scan Density 210 Jamming Range 12 Armor Coverage 800 Resistance: KI 30 Core Shielding 20 Power Shielding 66 Propulsion Shielding 33 Phase Shifting 5 Evasion (%) 50 Targeting Accuracy 6 Core Analysis 6 Recoil Reduction 2 Item Schematics ----------------- Hrd. Medium Armor Plating | -8/Materials | Scanalyzed Imp. Target Analyzer | -6/Factory | Extracted Proton Cannon | -6/Factory | Extracted System Shield | -6/Factory | Extracted Force Booster | -6/Factory | Extracted Sml. Storage Unit | -6/Factory | Extracted Mic. Nuclear Core | -6/Factory | Extracted Hcp. Storage Unit | -6/Factory | Extracted Arm. Huge Wheel | -6/Factory | Extracted Hrd. Light Armor Plating | -6/Factory | Extracted Power Amplifier | -6/Factory | Extracted Imp. Targeting Computer | -6/Factory | Extracted Launcher Loader | -6/Factory | Extracted Hvy. Pick | -6/Zion | Archive Imp. Remote Datajack | -6/Zion | Archive Adv. Thermal Shield | -6/Zion | Archive Imp. Weapon Cycler | -6/Zion | Archive Plasma Rifle | -6/Zion | Archive 0b10 Decoder Chip [Scout] | -6/Zion | Archive Recoil Nullifier | -6/Zion | Archive HERF Cannon | -6/Zion | Archive Lgt. Fission Core | -6/Zion | Archive Hvy. Treads | -6/Zion | Archive Hvy. Flak Cannon | -6/Zion | Archive Hvy. Beamcaster | -6/Zion | Archive EM Disruption Field | -6/Zion | Archive Robot Schematics ------------------ O-24 Administrator | -7/Factory | Hacked L-41 Fighter | -6/Zion | Archive T-07 Excavator | -6/Zion | Archive B-48 Gladiator | -6/Zion | Archive Fabricated ------------ Phase Gun | x2 | -7/Factory | Preloaded Alien Tech Used ----------------- None Achievements -------------- None Challenges ------------ None Game ------ Seed ZhirovBurstRegenerator Manual? 0 Play Time 01:38:42 Cumulative 112.0 hours Start 2024.05.20 @ 04:50:59 End 2024.05.21 @ 03:03:31 Sessions 7 Manual Loads 0 Difficulty Rogue Special Mode None Game No. 114 Rogue 105 Adventurer 9 Explorer 0 Win Type - Total 0 Types 0/0/0/0/0/0/0/0/0 Lore% 56 Gallery% 63 Achievement% 47 Wizard Run 0 Options --------- Layout 1 ASCII 0 Keyboard 0 Movement Numpad Keybinds 0 Fullscreen 1 Font 24/Smallcaps Map View 50x35 Zoom Use 0% Tactical HUD 0 Map Filters NONE Filters NONE Steam 1 RUN: a8fa7bbc-b488-4aeb-a02a-cf2216f87db1